fUST/lending_fUST_20251121
["ID","MTS","AMOUNT","RATE_DAILY","PERIOD"]
[394514062,1763656240065,-177.0,8.099e-05,2]
[394514064,1763656240075,-823.0,8.194e-05,2]
[394514065,1763656240084,-217.7543019,8.201e-05,2]
[394514066,1763656240094,-390.09493083,8.219e-05,2]
[394514067,1763656240104,-1190.19143308,8.354e-05,2]
[394514068,1763656240114,-2500.0,8.354e-05,2]
[394514069,1763656240123,-1000.0,8.361e-05,2]
[394514070,1763656240133,-256.47781332,8.468e-05,2]
[394514071,1763656240154,-221.59408342,9.104e-05,2]
[394514072,1763656240166,-183.39258286,9.106e-05,2]
[394514073,1763656240176,-217.7543019,9.111e-05,2]
[394514074,1763656240186,-256.47781332,9.12e-05,2]
[394514075,1763656240196,-1000.0,9.197e-05,2]
[394514076,1763656240205,-244.0,9.197e-05,2]
[394514077,1763656240216,-733.57033143,9.23e-05,2]
[394514078,1763656240227,-886.37633367,9.29e-05,2]
[394514079,1763656240237,-1650.53324573,9.354e-05,2]
[394514080,1763656240247,-1994.34675075,9.477e-05,2]
[394514081,1763656240256,-2934.28132573,9.477e-05,2]
[394514082,1763656240266,-256.73429114,9.773e-05,2]
[394514083,1763656240276,-1000.0,0.0001,2]
[394514084,1763656240286,-526.25687323,0.0001,2]
[394514085,1763656240295,-204.0,0.00010099,2]
[394514086,1763656240305,-1000.0,0.00010117,2]
[394514087,1763656240315,-492.0,0.00010117,2]
[394514088,1763656240325,-201.04469089,0.00010147,2]
[394514090,1763656240335,-369.5157234,0.00010556,2]
[394514092,1763656240345,-999.0,0.00010959,2]
[394514094,1763656240357,-500.0,0.00010959,2]
[394514096,1763656240366,-500.0,0.00010959,2]
[394514098,1763656240375,-500.0,0.00010959,2]
[394514100,1763656240384,-543.5239084,0.00010959,2]
[394514102,1763656240394,-151.0,0.00011,2]
[394514104,1763656240408,-151.0,0.00011,2]
[394514106,1763656240418,-1000.0,0.00011129,2]
[394514108,1763656240427,-791.0,0.00011129,2]
[394514110,1763656240436,-151.0,0.000115,2]
[394514112,1763656240446,-151.0,0.000115,2]
[394514114,1763656240456,-151.0,0.000119,2]
[394514116,1763656240465,-151.0,0.00012,2]
[394514118,1763656240475,-231.0,0.00012099,2]
[394514119,1763656240485,-1000.0,0.00012241,2]
[394514122,1763656240495,-1000.0,0.00012241,2]
[394514123,1763656240505,-1098.34,0.00012329,2]
[394514126,1763656240515,-915.29,0.00012329,2]
[394514127,1763656240524,-762.74,0.00012329,2]
[394514129,1763656240534,-635.61,0.00012329,2]
[394514131,1763656240544,-529.68,0.00012329,2]
[394514133,1763656240553,-441.4,0.00012329,2]
[394514135,1763656240563,-367.83,0.00012329,2]
[394514137,1763656240572,-306.53,0.00012329,2]
[394514139,1763656240583,-255.44,0.00012329,2]
[394514142,1763656240594,-212.87,0.00012329,2]
[394514143,1763656240603,-657.93,0.00012329,2]
[394514145,1763656240613,-548.28,0.00012329,2]
[394514147,1763656240623,-456.9,0.00012329,2]
[394514149,1763656240632,-380.75,0.00012329,2]
[394514152,1763656240643,-317.29,0.00012329,2]
[394514153,1763656240661,-393.74,0.00012329,2]
[394514155,1763656240671,-328.12,0.00012329,2]
[394514157,1763656240681,-273.43,0.00012329,2]
[394514159,1763656240691,-227.86,0.00012329,2]
[394514161,1763656240700,-189.88,0.00012329,2]
[394514163,1763656240710,-158.24,0.00012329,2]
[394514165,1763656240720,-791.21,0.00012329,2]
[394514167,1763656240730,-151.0,0.000124,2]
[394514169,1763656240741,-151.0,0.000124,2]
[394514171,1763656240751,-151.0,0.000128,2]
[394514173,1763656240761,-151.0,0.000129,2]
[394514175,1763656240770,-151.0,0.000129,2]
[394514177,1763656240780,-7954.03219414,0.000129,2]
[394514179,1763656240791,-7954.03219409,0.000129,2]
[394514181,1763656240802,-151.0,0.000132,2]
[394514183,1763656240812,-151.0,0.000133,2]
[394514185,1763656240822,-151.0,0.000134,2]
[394514187,1763656240832,-151.0,0.000134,2]
[394514189,1763656240842,-1000.0,0.00013466,2]
[394514191,1763656240852,-1000.0,0.00013466,2]
[394514193,1763656240862,-378.0,0.00013466,2]
[394514195,1763656240875,-500.0,0.00013698,2]
[394514197,1763656240884,-500.0,0.00013698,2]
[394514199,1763656240894,-500.0,0.00013698,2]
[394514201,1763656240911,-500.0,0.00013698,2]
[394514203,1763656240921,-500.0,0.00013698,2]
[394514205,1763656240931,-986.02206,0.00013699,2]
[394514207,1763656240941,-628.8699651,0.00013699,2]
[394514209,1763656240951,-504.8894792,0.00013699,2]
[394514211,1763656240964,-250.0006252,0.00013699,2]
[394514213,1763656240974,-160.0,0.00013699,2]
[394514215,1763656240985,-1000.0,0.00013699,2]
[394514217,1763656240994,-151.0,0.000138,2]
[394514219,1763656241004,-151.0,0.000138,2]
[394514221,1763656241013,-160.0,0.00013843,2]
[394514223,1763656241023,-151.0,0.000139,2]
[394514225,1763656241032,-414.0,0.00014073,2]
[394514226,1763656241042,-414.0,0.00014073,2]
[394514228,1763656241051,-258.0,0.00014099,2]
[394514230,1763656241061,-151.0,0.000142,2]
[394514232,1763656241071,-151.0,0.000142,2]
[394514234,1763656241080,-326.6373754,0.00014247,2]
[394514236,1763656241090,-500.0,0.0001429,2]
[394514238,1763656241100,-151.0,0.000143,2]
[394514240,1763656241110,-500.0,0.00014444,2]
[394514242,1763656241119,-22219.6288024,0.00014521,2]
[394514244,1763656241130,-500.0,0.00014573,2]
[394514246,1763656241140,-500.0,0.00014573,2]
[394514248,1763656241152,-500.0,0.00014657,2]
[394514250,1763656241162,-502.11761279,0.00014693,2]
[394514252,1763656241171,-500.0,0.00014693,2]
[394514254,1763656241181,-151.0,0.000147,2]
[394514256,1763656241190,-500.94071383,0.00014739,2]
[394514258,1763656241199,-506.47035172,0.00014739,2]
[394514260,1763656241209,-218.35143664,0.00014739,2]
[394514262,1763656241219,-500.0,0.00014739,2]
[394514278,1763656241355,-500.0,0.00014739,2]
[394514280,1763656241367,-151.0,0.000148,2]
[394514282,1763656241376,-502.59020552,0.00014838,2]
[394514284,1763656241386,-507.19113816,0.00014863,2]
[394514286,1763656241401,-500.0,0.00014877,2]
[394514288,1763656241411,-500.0,0.00014911,2]
[394514290,1763656241420,-291.98279227,0.0001499,7]
[394514292,1763656241429,-501.66900627,0.00015121,2]
[394514294,1763656241439,-151.0,0.000152,2]
[394514295,1763656241448,-509.21781963,0.00015205,2]
[394514297,1763656241457,-257.7860095,0.00015241,2]
[394514299,1763656241466,-502.49044435,0.00015287,2]
[394514301,1763656241476,-1002.13432603,0.00015287,2]
[394514303,1763656241485,-151.0,0.000153,2]
[394514305,1763656241494,-500.0,0.00015425,2]
[394514307,1763656241504,-1000.0,0.00015459,2]
[394514309,1763656241514,-100000.0,0.00015612,2]
[394514311,1763656241523,-1000.0,0.00016007,2]
[394514313,1763656241532,-163.42973719,0.00016099,2]
[394514315,1763656241541,-500.0,0.00016438,2]
[394514317,1763656241551,-500.0,0.00016438,2]
[394514319,1763656241561,-500.0,0.00016438,2]
[394514321,1763656241570,-500.0,0.00016438,2]
[394514323,1763656241580,-500.0,0.00016438,2]
[394514325,1763656241590,-500.0,0.00016438,2]
[394514327,1763656241600,-526.58642033,0.00016438,2]
[394514329,1763656241609,-500.0,0.00016438,2]
[394514331,1763656241619,-500.0,0.00016438,2]
[394514332,1763656241628,-500.0,0.00016438,2]
[394514334,1763656241639,-500.0,0.00016438,2]
[394514336,1763656241650,-500.0,0.00016438,2]
[394514338,1763656241660,-660.50310445,0.00016438,2]
[394514340,1763656241676,-500.0,0.00016438,2]
[394514342,1763656241684,-500.0,0.00016438,2]
[394514344,1763656241694,-500.0,0.00016438,2]
[394514346,1763656241702,-500.0,0.00016438,2]
[394514348,1763656241712,-660.50310445,0.00016438,2]
[394514350,1763656241722,-660.50310445,0.00016438,2]
[394514352,1763656241731,-377.284798,0.00016438,2]
[394514354,1763656241740,-377.284798,0.00016438,2]
[394514356,1763656241750,-377.284798,0.00016438,2]
[394514358,1763656241759,-377.284798,0.00016438,2]
[394514359,1763656241768,-377.284798,0.00016438,2]
[394514361,1763656241778,-377.284798,0.00016438,2]
[394514363,1763656241788,-377.284798,0.00016438,2]
[394514365,1763656241798,-377.284798,0.00016438,2]
[394514368,1763656241808,-377.284798,0.00016438,2]
[394514370,1763656241817,-377.284798,0.00016438,2]
[394514371,1763656241827,-377.284798,0.00016438,2]
[394514374,1763656241837,-377.284798,0.00016438,2]
[394514376,1763656241846,-377.284798,0.00016438,2]
[394514378,1763656241856,-377.284798,0.00016438,2]
[394514379,1763656241866,-377.284798,0.00016438,2]
[394514381,1763656241877,-377.284798,0.00016438,2]
[394514383,1763656241890,-377.284798,0.00016438,2]
[394514385,1763656241903,-377.284798,0.00016438,2]
[394514387,1763656241913,-377.284798,0.00016438,2]
[394514389,1763656241923,-377.284793,0.00016438,2]
[394514391,1763656241933,-151.0,0.00016438,2]
[394514393,1763656241942,-151.792213,0.00016438,2]
[394514395,1763656241954,-414.0,0.00017073,2]
[394514397,1763656241963,-414.0,0.00017073,2]
[394514399,1763656241972,-7954.03219409,0.00018467,2]
[394514401,1763656241981,-150.0,0.00019405,30]
[394514403,1763656241990,-1000.0,0.0002,6]
[394514405,1763656241999,-414.0,0.00020073,2]
[394514407,1763656242009,-414.0,0.00020073,2]
[394514409,1763656242018,-986.02206,0.00020187,2]
[394514411,1763656242027,-17032.36977476,0.0002101,2]
[394514413,1763656242036,-229.41,0.00021169,30]
[394514414,1763656242045,-156.0,0.000213,4]
[394514416,1763656242054,-300.0,0.00021973,2]
[394514418,1763656242064,-163.0,0.00022,4]
[394514420,1763656242073,-522.92,0.00022,7]
[394514422,1763656242082,-509.84,0.00022,14]
[394514424,1763656242092,-70857.48,0.00022,2]
[394514425,1763656242101,-616.8450203,0.0002233,2]
[394514426,1763656242111,-166.13629906,0.0002233,2]
[394514427,1763656242121,-405.44184109,0.0002233,2]
[394514428,1763656242131,-515.21945782,0.0002233,2]
[394514429,1763656242144,-405.44184109,0.00022377,5]
[394514430,1763656242156,-405.44184109,0.00022424,9]
[394514431,1763656242166,-616.8450203,0.00022427,9]
[394514432,1763656242175,-515.21945782,0.00022427,9]
[394514433,1763656242185,-405.44184109,0.0002247,13]
[394514434,1763656242194,-603.3576188,0.000225,2]
[394514435,1763656242203,-405.44184109,0.00022517,16]
[394514436,1763656242213,-616.8450203,0.00022524,17]
[394514437,1763656242223,-515.21945782,0.00022524,17]
[394514438,1763656242233,-405.44184109,0.00022564,20]
[394514439,1763656242243,-405.44184109,0.0002261,24]
[394514441,1763656242252,-616.8450203,0.0002262,25]
[394514442,1763656242261,-515.21945782,0.0002262,25]
[394514443,1763656242271,-405.44184109,0.00022657,28]
[394514444,1763656242281,-405.44184109,0.00022704,31]
[394514446,1763656242291,-616.8450203,0.00022717,32]
[394514448,1763656242301,-515.21945782,0.00022717,32]
[394514449,1763656242311,-405.44184109,0.0002275,35]
[394514450,1763656242320,-405.44184109,0.00022797,39]
[394514451,1763656242329,-616.8450203,0.00022814,40]
[394514452,1763656242338,-515.21945782,0.00022814,40]
[394514453,1763656242348,-405.44184109,0.00022844,42]
[394514454,1763656242357,-405.44184109,0.0002289,46]
[394514455,1763656242367,-616.8450203,0.0002291,48]
[394514456,1763656242376,-515.21945782,0.0002291,48]
[394514457,1763656242385,-344.11,0.00022933,30]
[394514458,1763656242395,-405.44184109,0.00022937,50]
[394514459,1763656242411,-405.44184109,0.00022984,54]
[394514460,1763656242421,-616.8450203,0.00023007,56]
[394514461,1763656242431,-166.13629906,0.00023007,56]
[394514462,1763656242443,-515.21945782,0.00023007,56]
[394514463,1763656242454,-405.44184109,0.0002303,57]
[394514464,1763656242465,-414.0,0.00023073,2]
[394514465,1763656242474,-414.0,0.00023073,2]
[394514466,1763656242486,-405.44184109,0.00023077,61]
[394514467,1763656242497,-616.8450203,0.00023104,63]
[394514468,1763656242506,-515.21945782,0.00023104,63]
[394514469,1763656242517,-405.44184109,0.00023124,65]
[394514470,1763656242527,-405.44184109,0.0002317,69]
[394514471,1763656242537,-616.8450203,0.000232,71]
[394514472,1763656242547,-515.21945782,0.000232,71]
[394514473,1763656242557,-405.44184109,0.00023217,72]
[394514474,1763656242567,-405.44184109,0.00023264,76]
[394514475,1763656242577,-616.8450203,0.00023297,79]
[394514476,1763656242587,-515.21945782,0.00023297,79]
[394514477,1763656242600,-405.44184109,0.0002331,80]
[394514478,1763656242611,-405.44184109,0.00023357,83]
[394514479,1763656242620,-616.8450203,0.00023394,86]
[394514480,1763656242631,-515.21945782,0.00023394,86]
[394514481,1763656242641,-405.44184109,0.00023404,87]
[394514482,1763656242656,-405.44184109,0.0002345,91]
[394514483,1763656242666,-616.8450203,0.0002349,94]
[394514484,1763656242676,-515.21945782,0.0002349,94]
[394514485,1763656242686,-405.44184109,0.00023497,95]
[394514486,1763656242696,-405.44184109,0.00023544,98]
[394514487,1763656242706,-616.8450203,0.00023587,102]
[394514488,1763656242716,-515.21945782,0.00023587,102]
[394514491,1763656242726,-405.44184109,0.0002359,102]
[394514492,1763656242737,-405.44184109,0.00023637,106]
[394514494,1763656242748,-616.8450203,0.00023684,110]
[394514497,1763656242759,-166.13629906,0.00023684,110]
[394514499,1763656242768,-27778.86052847,0.00024142,2]
[394514500,1763656242777,-70857.48,0.000242,2]
[394514502,1763656242787,-380.0,0.00024658,2]
[394514505,1763656242797,-151.812421,0.00024658,7]
[394514507,1763656242806,-151.370071,0.00024658,7]
[394514509,1763656242815,-151.0,0.00024658,7]
[394514511,1763656242825,-153.114859,0.00024658,7]
[394514513,1763656242835,-151.0,0.00024658,7]
[394514515,1763656242846,-151.558729,0.00024658,7]
[394514517,1763656242857,-151.0,0.00024658,7]
[394514519,1763656242867,-151.0,0.00024658,7]
[394514521,1763656242877,-151.0,0.00024658,7]
[394514523,1763656242888,-151.0,0.00024658,7]
[394514525,1763656242906,-273.481236,0.00024658,7]
[394514527,1763656242916,-151.0,0.00024658,7]
[394514530,1763656242925,-151.0,0.00024658,7]
[394514531,1763656242936,-151.0,0.00024658,7]
[394514534,1763656242947,-151.0,0.00024658,7]
[394514536,1763656242958,-151.0,0.00024658,7]
[394514538,1763656242970,-209.753112,0.00024658,7]
[394514539,1763656242982,-153.843737,0.00024658,7]
[394514540,1763656242992,-151.0,0.00024658,7]
[394514541,1763656243003,-151.285015,0.00024658,7]
[394514542,1763656243013,-151.0,0.00024658,7]
[394514543,1763656243023,-151.0,0.00024658,7]
[394514544,1763656243033,-151.0,0.00024658,7]
[394514545,1763656243043,-7954.03219409,0.0002467,2]
[394514546,1763656243053,-458.82,0.00024698,30]
[394514547,1763656243063,-509.84,0.000247,14]
[394514548,1763656243073,-201.89168135,0.00024799,2]
[394514549,1763656243083,-200.0,0.00024799,2]
[394514550,1763656243093,-13022.255341,0.000248,2]
[394514551,1763656243102,-215.69190527,0.00024899,2]
[394514552,1763656243113,-7465.48415188,0.000249,2]
[394514553,1763656243162,-99915.99365899,0.000249,2]
[394514554,1763656243190,-685.4138,0.00013699,2]
[394514555,1763656243201,-722.3202,0.00014384,2]
[394514556,1763656243210,-87182.48255692,0.000249,2]
[394514557,1763656243222,-714.16590829,0.000249,2]
[394514558,1763656243233,-458338.86894092,0.000249,2]
[394514559,1763656243243,-5932.16529005,0.000249,2]
[394514560,1763656243253,-1000.0,0.00025,14]
[394514561,1763656243262,-50908.5426295,0.00025,15]
[394514562,1763656243274,-153.11542805,0.00025,5]
[394514563,1763656243283,-343.0,0.00025082,2]
[394514564,1763656243293,-2069.18614899,0.00025281,7]
[394514565,1763656243304,-1166.7632379,0.0002532,7]
[394514566,1763656243313,-161.0,0.00026,5]
[394514567,1763656243323,-414.0,0.00026073,2]
[394514568,1763656243334,-414.0,0.00026073,2]
[394514569,1763656243344,-573.52,0.00026462,30]
[394514570,1763656243353,-200.0,0.0002654,14]
[394514571,1763656243363,-986.02206,0.00026676,2]
[394514572,1763656243373,-400.97185895,0.00027,3]
[394514573,1763656243383,-151.0,0.00027397,7]
[394514574,1763656243394,-688.22,0.00028226,30]
[394514575,1763656243410,-454.75746014,0.0002905,2]
[394514576,1763656243420,-414.0,0.00029073,2]
[394514577,1763656243429,-414.0,0.00029073,2]
[394514578,1763656243439,-182.0,0.00029562,14]
[394514579,1763656243449,-802.93,0.0002999,30]
[394514580,1763656243458,-315.83733039,0.0003,7]
[394514581,1763656243468,-942.76,0.000302,2]
[394514582,1763656243477,-522.92,0.000302,7]
[394514583,1763656243487,-7954.03219409,0.00030874,2]
[394514584,1763656243497,-917.63,0.00031754,30]
[394514585,1763656243507,-5932.16529,0.00032011,2]
[394514586,1763656243518,-414.0,0.00032073,2]
[394514587,1763656243527,-414.0,0.00032073,2]
[394514588,1763656243537,-70857.48,0.000322,2]
[394514589,1763656243547,-173.0,0.00032301,14]
[394514590,1763656243556,-1005.93129991,0.00032698,2]
[394514591,1763656243565,-509.84,0.000327,14]
[394514592,1763656243575,-4802.41,0.00032877,10]
[394514593,1763656243586,-8223.45,0.00032877,10]
[394514594,1763656243597,-6852.88,0.00032877,10]
[394514595,1763656243606,-1000.0,0.00033,120]
[394514596,1763656243616,-986.02206,0.00033165,2]
[394514597,1763656243627,-1032.33,0.00033518,30]
[394514598,1763656243637,-21837.6906083,0.00034247,30]
[394514599,1763656243647,-267.64,0.00034546,2]
[394514600,1763656243659,-522.28650211,0.00034728,12]
[394514601,1763656243670,-1000.0,0.00035,120]
[394514603,1763656243680,-414.0,0.00035073,2]
[394514605,1763656243691,-414.0,0.00035073,2]
[394514607,1763656243700,-707.581052,0.0003516,120]
[394514610,1763656243712,-1111.74,0.00035282,30]
[394514612,1763656243722,-161.289599,0.00035832,2]
[394514614,1763656243732,-168.0,0.00035998,120]
[394514616,1763656243741,-522.92,0.00036,7]
[394514618,1763656243751,-175.0,0.00036,30]
[394514619,1763656243760,-1000.0,0.00037,120]
[394514622,1763656243770,-7954.03219409,0.00037077,2]
[394514624,1763656243780,-70857.48,0.000374,2]
[394514626,1763656243790,-200.0,0.00037408,120]
[394514628,1763656243800,-20059.72739,0.000375,2]
[394514631,1763656243809,-503.42721197,0.0003765,30]
[394514633,1763656243819,-535.28,0.00037686,2]
[394514635,1763656243831,-157.0,0.00037781,14]
[394514637,1763656243841,-168.0,0.00037798,120]
[394514639,1763656243850,-509.84,0.000378,30]
[394514641,1763656243860,-414.0,0.00038073,2]
[394514642,1763656243873,-414.0,0.00038073,2]
[394514644,1763656243883,-150.0,0.00038356,2]
[394514645,1763656243893,-500.0,0.00038356,2]
[394514646,1763656243906,-151.0,0.00038356,90]
[394514647,1763656243918,-464.0,0.00038356,2]
[394514648,1763656243927,-150.01108465,0.00038356,5]
[394514649,1763656243937,-500.0,0.00038383,2]
[394514650,1763656243947,-151.0,0.00038383,90]
[394514651,1763656243958,-464.0,0.00038383,2]
[394514652,1763656243967,-500.0,0.00038411,2]
[394514653,1763656243977,-151.0,0.00038411,90]
[394514654,1763656243986,-464.0,0.00038411,2]
[394514655,1763656244133,-464.0,0.00038411,2]
[394514656,1763656244143,-500.0,0.00038438,2]
[394514657,1763656244157,-151.0,0.00038438,90]
[394514658,1763656244166,-464.0,0.00038438,2]
[394514659,1763656244176,-464.0,0.00038438,2]
[394514660,1763656244185,-500.0,0.00038466,2]
[394514661,1763656244195,-166.86377363,0.00038466,90]
[394514662,1763656244205,-500.0,0.00038466,2]
[394514663,1763656244215,-464.0,0.00038466,2]
[394514664,1763656244226,-464.0,0.00038466,2]
[394514665,1763656244237,-638.0,0.00038493,2]
[394514666,1763656244247,-500.0,0.00038493,2]
[394514667,1763656244258,-464.0,0.00038493,2]
[394514668,1763656244268,-464.0,0.00038493,2]
[394514669,1763656244278,-500.0,0.0003852,2]
[394514670,1763656244288,-464.0,0.0003852,2]
[394514671,1763656244297,-464.0,0.0003852,2]
[394514672,1763656244307,-500.0,0.00038548,2]
[394514673,1763656244318,-464.0,0.00038548,2]
[394514674,1763656244328,-500.0,0.00038575,2]
[394514675,1763656244338,-464.0,0.00038575,2]
[394514676,1763656244348,-513.0,0.00038603,2]
[394514677,1763656244358,-464.0,0.00038603,2]
[394514678,1763656244366,-464.0,0.0003863,2]
[394514679,1763656244376,-464.0,0.00038657,2]
[394514680,1763656244385,-464.0,0.00038685,2]
[394514681,1763656244394,-464.0,0.00038712,2]
[394514682,1763656244410,-215.0,0.00038717,120]
[394514683,1763656244419,-464.0,0.0003874,2]
[394514684,1763656244429,-464.0,0.00038767,2]
[394514685,1763656244438,-464.0,0.00038794,2]
[394514686,1763656244448,-464.0,0.00038822,2]
[394514687,1763656244457,-464.0,0.00038849,2]
[394514688,1763656244468,-1000.0,0.00039,120]
[394514689,1763656244477,-14033.0,0.00039,2]
[394514690,1763656244487,-264.07,0.00039,14]
[394514691,1763656244496,-200.0,0.00039017,120]
[394514692,1763656244506,-522.92,0.000391,7]
[394514693,1763656244516,-5932.16529,0.00039122,2]
[394514694,1763656244525,-200.0,0.00039176,120]
[394514695,1763656244535,-2000.0,0.00039211,20]
[394514696,1763656244544,-4213.75802862,0.0003923,20]
[394514697,1763656244553,-5000.0,0.0003923,20]
[394514698,1763656244564,-62782.19653513,0.0003923,2]
[394514699,1763656244574,-1000.0,0.0003923,10]
[394514700,1763656244583,-1019.0,0.0003923,19]
[394514701,1763656244593,-10000.0,0.0003923,15]
[394514702,1763656244603,-250.0,0.0003923,10]
[394514703,1763656244612,-250.0,0.0003923,10]
[394514704,1763656244622,-250.0,0.0003923,10]
[394514705,1763656244631,-458.454966,0.0003923,10]
[394514706,1763656244642,-265.954939,0.0003923,2]
[394514707,1763656244652,-265.954939,0.0003923,2]
[394514708,1763656244662,-265.954939,0.0003923,2]
[394514709,1763656244671,-265.954939,0.0003923,2]
[394514710,1763656244682,-265.954939,0.0003923,2]
[394514711,1763656244692,-265.954939,0.0003923,2]
[394514713,1763656244701,-265.954939,0.0003923,2]
[394514714,1763656244710,-265.954939,0.0003923,2]
[394514716,1763656244723,-265.954939,0.0003923,2]
[394514718,1763656244732,-265.954939,0.0003923,2]
[394514720,1763656244741,-265.954939,0.0003923,2]
[394514721,1763656244751,-265.954939,0.0003923,2]
[394514722,1763656244760,-265.954939,0.0003923,2]
[394514723,1763656244770,-265.954939,0.0003923,2]
[394514724,1763656244780,-265.954939,0.0003923,2]
[394514725,1763656244790,-265.954939,0.0003923,2]
[394514726,1763656244800,-265.954939,0.0003923,2]
[394514728,1763656244810,-265.954939,0.0003923,2]
[394514730,1763656244820,-265.954939,0.0003923,2]
[394514732,1763656244830,-265.954932,0.0003923,2]
[394514734,1763656244839,-151.0,0.0003923,15]
[394514735,1763656244848,-151.0,0.0003923,15]
[394514737,1763656244857,-151.0,0.0003923,15]
[394514739,1763656244867,-151.0,0.0003923,15]
[394514740,1763656244876,-151.0,0.0003923,15]
[394514742,1763656244890,-151.0,0.0003923,15]
[394514744,1763656244903,-192.591164,0.0003923,15]
[394514746,1763656244916,-524.87469203,0.0003923,10]
[394514747,1763656244926,-151.0,0.0003923,7]
[394514748,1763656244936,-151.0,0.0003923,7]
[394514750,1763656244945,-151.0,0.0003923,7]
[394514752,1763656244955,-151.0,0.0003923,7]
[394514753,1763656244965,-151.0,0.0003923,7]
[394514755,1763656244975,-151.0,0.0003923,7]
[394514757,1763656244984,-151.0,0.0003923,7]
[394514758,1763656244994,-151.0,0.0003923,7]
[394514760,1763656245003,-210.396362,0.0003923,7]
[394514762,1763656245012,-2491.35785267,0.0003925,2]
[394514763,1763656245022,-1004.0,0.00039258,20]
[394514764,1763656245032,-391.86860551,0.00039352,14]
[394514765,1763656245041,-500.0,0.00039352,14]
[394514766,1763656245051,-70857.48,0.000394,2]
[394514767,1763656245060,-942.76,0.000395,14]
[394514768,1763656245071,-250.0,0.000396,10]
[394514769,1763656245083,-986.02206,0.00039654,2]
[394514770,1763656245093,-410.85073,0.000397,10]
[394514771,1763656245104,-227.97937877,0.000399,120]
[394514772,1763656245114,-237.23928814,0.000399,120]
[394514773,1763656245123,-186.47771584,0.000399,120]
[394514774,1763656245135,-184.24488174,0.000399,120]
[394514775,1763656245144,-174.81478668,0.000399,120]
[394514776,1763656245160,-175.60719615,0.000399,120]
[394514777,1763656245170,-300.6281799,0.000399,120]
[394514778,1763656245179,-184.83274832,0.000399,120]
[394514779,1763656245189,-160.84108898,0.000399,120]
[394514780,1763656245199,-212.12787853,0.000399,120]
[394514781,1763656245209,-201.36072933,0.000399,120]
[394514782,1763656245218,-1000.0,0.0004,120]
[394514783,1763656245227,-257.21,0.0004,10]
[394514784,1763656245237,-509.84,0.0004,30]
[394514785,1763656245247,-400.97185895,0.0004,30]
[394514786,1763656245257,-400.97185895,0.0004,10]
[394514787,1763656245267,-707.581052,0.00040183,120]
[394514788,1763656245278,-215.0,0.00040653,120]
[394514789,1763656245288,-164.337,0.00040705,58]
[394514790,1763656245297,-200.0,0.000408,120]
[394514791,1763656245307,-802.93,0.00040827,2]
[394514792,1763656245318,-200.0,0.00040865,120]
[394514793,1763656245328,-1000.0,0.00041,120]
[394514794,1763656245337,-414.0,0.00041073,2]
[394514795,1763656245346,-414.0,0.00041073,2]
[394514796,1763656245355,-186.47771584,0.000411,120]
[394514797,1763656245365,-174.81478668,0.000411,120]
[394514798,1763656245374,-175.60719615,0.000411,120]
[394514799,1763656245384,-212.12787853,0.000411,120]
[394514800,1763656245393,-200.0,0.00041493,120]
[394514801,1763656245405,-186.47771584,0.000423,120]
[394514802,1763656245415,-175.60719615,0.000423,120]
[394514803,1763656245425,-522.92,0.000423,14]
[394514804,1763656245436,-215.0,0.00042685,120]